bitfinex/quotes_SOLUSD_20250517
["timestamp","ask_amount","ask_price","bid_price","bid_amount"]
[1747441356724,26.51467066,167.42,167.4,13.90166942]
[1747441356915,20.54139371,167.41,167.4,13.90166942]
[1747441358242,5.9715753,167.46,167.4,13.90166942]
[1747441358415,26.51296901,167.46,167.4,13.90166942]
[1747441358615,20.54139371,167.44,167.4,13.90166942]
[1747441358815,26.51403899,167.43,167.4,13.90166942]
[1747441359527,20.54139371,167.42,167.4,13.90166942]
[1747441360434,26.51403899,167.43,167.4,13.90166942]
[1747441360643,5.97232917,167.44,167.4,13.90166942]
[1747441360829,20.54139371,167.46,167.4,19.87534175]
[1747441361025,20.54139371,167.45,167.4,19.87534175]
[1747441361538,20.54139371,167.47,167.41,26.0]
[1747441362115,20.54139371,167.48,167.43,26.0]
[1747441363842,26.51238079,167.48,167.43,26.0]
[1747441364234,5.96908016,167.53,167.43,31.9725762]
[1747441364734,20.54139371,167.51,167.43,31.9725762]
[1747441365116,5.96908016,167.53,167.43,31.9725762]
[1747441365335,26.51136157,167.51,167.43,31.9725762]
[1747441365941,5.96996786,167.51,167.43,31.9725762]
[1747441366124,20.54139371,167.48,167.45,26.0]
[1747441366436,20.54139371,167.46,167.43,26.0]
[1747441367329,26.51319625,167.46,167.43,26.0]
[1747441369034,20.54139371,167.45,167.41,26.0]
[1747441369235,5.97180254,167.46,167.41,26.0]
[1747441369236,20.54139371,167.43,167.41,26.0]
[1747441369441,20.54139371,167.45,167.41,26.0]
[1747441371647,20.89801767,167.48,167.41,26.0]
[1747441371850,20.54139371,167.45,167.41,26.0]
[1747441373772,20.54139371,167.44,167.41,26.0]
[1747441374051,5.97264528,167.43,167.41,26.0]
[1747441374249,26.51403899,167.43,167.41,26.0]
[1747441374636,20.54139371,167.42,167.41,26.0]
[1747441375552,26.51458038,167.42,167.4,13.90166942]
[1747441375741,20.54139371,167.41,167.4,13.90166942]
[1747441378159,26.51475252,167.41,167.4,13.90166942]
[1747441379254,18.81540714,167.41,167.4,13.90166942]
[1747441380459,5.97310894,167.42,167.4,13.90166942]
[1747441380632,12.84204833,167.41,167.4,13.90166942]
[1747441381729,18.81540714,167.41,167.4,13.90166942]
[1747441382461,12.84204833,167.42,167.4,13.90166942]
[1747441382846,18.81516306,167.42,167.4,13.90166942]
[1747441383244,25.68409666,167.41,167.4,13.90166942]
[1747441383644,18.81540714,167.41,167.4,13.90166942]
[1747441388560,5.97335881,167.41,167.4,13.90166942]
[1747441388750,18.81540714,167.41,167.4,13.90166942]
[1747441390267,5.97335881,167.41,167.4,13.90166942]
[1747441390435,18.81540714,167.41,167.4,13.90166942]
[1747441392368,50.30710433,167.41,167.4,13.90166942]
[1747441393868,69.4231988,167.41,167.31,26.0]
[1747441394075,12.84204833,167.4,167.31,26.0]
[1747441394245,18.81762381,167.35,167.31,26.0]
[1747441394960,12.84204833,167.33,167.31,26.0]
[1747441395457,12.84204833,167.33,167.28,7.8842]
[1747441395663,12.84204833,167.33,167.29,26.0]
[1747441396272,5.97657183,167.32,167.29,26.0]
[1747441396652,61.7553,167.39,167.29,26.0]
[1747441396653,5.97585753,167.34,167.29,26.0]
[1747441396978,12.84204833,167.36,167.29,26.0]
[1747441397160,12.84204833,167.35,167.29,26.0]
[1747441397769,5.97585753,167.34,167.29,31.97761842]
[1747441397982,18.81790586,167.34,167.29,31.97761842]
[1747441398178,18.81790586,167.34,167.29,26.0]
[1747441398663,12.84204833,167.33,167.29,26.0]
[1747441399665,5.97657183,167.32,167.29,26.0]
[1747441402144,18.81837971,167.33,167.29,26.0]
[1747441402348,12.84204833,167.35,167.29,31.97760036]
[1747441402574,12.84204833,167.31,167.29,26.0]
[1747441402789,12.84204833,167.31,167.28,33.8842]
[1747441402946,18.81902125,167.31,167.25,5.97895383]
[1747441403148,18.81902125,167.31,167.26,26.0]
[1747441403348,18.81902125,167.31,167.27,26.0]
[1747441403875,12.84204833,167.3,167.27,26.0]
[1747441405056,14.93991975,167.34,167.27,26.0]
[1747441405261,12.84204833,167.31,167.27,26.0]
[1747441406473,14.93991975,167.34,167.27,26.0]
[1747441406681,12.84204833,167.31,167.27,26.0]
[1747441406979,14.93991975,167.34,167.27,26.0]
[1747441407177,12.84204833,167.31,167.27,26.0]
[1747441407681,18.81911004,167.31,167.27,26.0]
[1747441408174,5.97706171,167.31,167.27,26.0]
[1747441408383,18.81911004,167.31,167.27,26.0]
[1747441408554,5.97666647,167.32,167.27,26.0]
[1747441408755,12.84204833,167.31,167.27,26.0]
[1747441409071,18.81800265,167.34,167.27,31.97822088]
[1747441409274,12.84204833,167.35,167.28,18.64964886]
[1747441409881,18.81766479,167.35,167.29,5.97764361]
[1747441411074,5.97561646,167.35,167.27,160.7]
[1747441411282,12.84204833,167.34,167.27,160.7]
[1747441411481,18.81766479,167.35,167.27,166.67832704]
[1747441411669,12.84204833,167.35,167.28,18.64964886]
[1747441411870,18.81755832,167.35,167.28,18.64964886]
[1747441412886,18.81755832,167.35,167.29,5.97764361]
[1747441413183,12.84204833,167.35,167.29,5.97764361]
[1747441413489,18.81684865,167.37,167.3,34.1496]
[1747441414062,12.84204833,167.37,167.3,34.1496]
[1747441415197,12.84204833,167.37,167.31,5.97692905]
[1747441415372,5.97407252,167.39,167.31,5.97692905]
[1747441415373,18.81612085,167.39,167.31,5.97692905]
[1747441415563,18.81612085,167.39,167.32,18.64964886]
[1747441415960,12.84204833,167.39,167.32,18.64964886]
[1747441416702,12.84204833,167.39,167.33,26.0]
[1747441416995,12.84204833,167.39,167.35,26.0]
[1747441418797,12.84204833,167.39,167.35,31.97538949]
[1747441422396,12.84204833,167.39,167.35,31.47538949]
[1747441425584,12.84204833,167.4,167.35,31.47538949]
[1747441426103,27.65767306,167.45,167.39,26.0]
[1747441426310,40.49972139,167.45,167.4,26.0]
[1747441427106,46.47177374,167.45,167.4,26.0]
[1747441427622,46.47177374,167.45,167.4,31.97365587]
[1747441427973,27.65767306,167.45,167.4,31.97365587]
[1747441428282,40.49972139,167.45,167.4,31.97365587]
[1747441428597,46.47171871,167.45,167.4,31.97365587]
[1747441429617,12.84204833,167.44,167.4,26.0]
[1747441431414,12.84204833,167.44,167.37,7.7622]
[1747441431612,18.8155205,167.41,167.39,26.0]
[1747441431815,18.8155205,167.41,167.34,5.97585753]
[1747441431984,12.84204833,167.4,167.34,5.97585753]
[1747441432515,12.84204833,167.4,167.35,26.0]
[1747441432888,18.81588548,167.4,167.35,26.0]
[1747441434514,18.81588548,167.4,167.36,26.0]
[1747441435031,5.9705057,167.49,167.41,5.97335881]
[1747441435229,9.51092148,167.5,167.41,5.97335881]
[1747441435230,7.53665481,167.5,167.41,5.97335881]
[1747441435448,12.84204833,167.48,167.41,5.97335881]
[1747441435603,12.84204833,167.45,167.4,33.7622]
[1747441435810,12.84204833,167.45,167.4,39.73581124]
[1747441436230,12.84204833,167.45,167.4,33.7622]
[1747441436541,12.84204833,167.45,167.4,39.73580164]
[1747441438625,12.84204833,167.46,167.4,39.73580164]
[1747441439021,12.84204833,167.47,167.4,39.73580164]
[1747441439222,12.84204833,167.48,167.4,39.73580164]
[1747441439422,12.84204833,167.49,167.44,26.0]
[1747441440047,12.84204833,167.49,167.41,153.34964886]
[1747441440242,5.96918895,167.53,167.44,26.0]
[1747441440561,12.84204833,167.54,167.49,5.9705057]
[1747441441253,5.96842494,167.55,167.49,5.9705057]
[1747441441405,12.84204833,167.54,167.48,31.9707582]
[1747441441611,12.84204833,167.52,167.48,26.0]
[1747441442164,12.84204833,167.53,167.48,31.97084418]
[1747441443084,20.88704402,167.57,167.48,31.97084418]
[1747441443268,12.84204833,167.54,167.48,31.97084418]
[1747441444352,12.84204833,167.53,167.48,31.97084418]
[1747441444551,12.84204833,167.53,167.48,26.0]
[1747441444972,12.84204833,167.5,167.46,26.0]
[1747441445255,12.84204833,167.5,167.47,26.0]
[1747441446259,12.84204833,167.5,167.45,31.97193137]
[1747441446468,18.8122144,167.5,167.47,26.0]
[1747441446972,12.84204833,167.48,167.42,140.6727445]
[1747441447145,5.97016607,167.5,167.38,14.93542604]
[1747441447351,12.84204833,167.46,167.39,18.64964886]
[1747441447551,12.84204833,167.46,167.41,26.0]
[1747441447744,12.84204833,167.48,167.43,26.0]
[1747441447949,12.84204833,167.49,167.43,26.0]
[1747441448136,5.97016607,167.5,167.44,5.97228858]
[1747441448336,18.8122144,167.5,167.44,5.97228858]
[1747441449162,12.84204833,167.48,167.43,26.0]
[1747441449376,12.84204833,167.47,167.43,26.0]
[1747441449584,12.84204833,167.46,167.43,26.0]
[1747441449777,12.84204833,167.46,167.4,7.7622]
[1747441449952,12.84204833,167.46,167.41,26.0]
[1747441450273,5.97193191,167.45,167.4,13.73580022]
[1747441450771,12.84204833,167.44,167.41,26.0]
[1747441451150,5.97193191,167.45,167.41,26.0]
[1747441451373,12.84204833,167.44,167.41,26.0]
[1747441453279,18.81435842,167.44,167.41,26.0]
[1747441453658,5.97204796,167.45,167.41,26.0]
[1747441453987,5.97086219,167.48,167.41,31.97335599]
[1747441454194,12.84204833,167.46,167.41,26.0]
[1747441454484,12.84204833,167.45,167.41,26.0]
[1747441455159,5.9719927,167.45,167.41,26.0]
[1747441455367,12.84204833,167.44,167.41,26.0]
[1747441456357,5.9719927,167.45,167.39,26.0]
[1747441456553,18.8136693,167.46,167.39,26.0]
[1747441456954,5.97162097,167.46,167.41,26.0]
[1747441457476,12.84204833,167.5,167.42,18.64964886]
[1747441457664,12.84204833,167.51,167.45,26.0]
[1747441459288,12.84204833,167.51,167.46,5.9715753]
[1747441459667,18.81190132,167.51,167.45,31.97189244]
[1747441459878,5.96985299,167.51,167.45,31.97189244]
[1747441460390,12.84204833,167.5,167.45,31.97189244]
[1747441460886,12.84204833,167.47,167.43,26.0]
[1747441461794,18.8136037,167.47,167.44,26.0]
[1747441462183,5.97014925,167.5,167.44,26.0]
[1747441462495,12.84204833,167.48,167.44,26.0]
[1747441463291,1.5613,167.53,167.44,31.97215632]
[1747441463596,12.84204833,167.51,167.44,31.97215632]
[1747441463811,12.84204833,167.53,167.45,18.64964886]
[1747441463962,12.84204833,167.54,167.48,26.0]
[1747441464163,12.84204833,167.55,167.49,26.0]
[1747441465290,5.96813187,167.56,167.5,31.97009248]
[1747441465472,18.8101802,167.56,167.5,31.97009248]
[1747441465675,12.84204833,167.57,167.5,31.97009248]
[1747441466673,5.96801145,167.56,167.5,31.97009248]
[1747441467607,5.96801145,167.56,167.51,26.0]
[1747441469168,5.96801145,167.56,167.49,5.97015545]
[1747441469664,5.96658711,167.6,167.53,20.28674886]
[1747441470581,12.84204833,167.59,167.53,1.6371]
[1747441470789,12.84204833,167.58,167.53,1.6371]
[1747441470997,12.84204833,167.56,167.5,160.7]
[1747441471290,5.96799305,167.57,167.51,18.64964886]
[1747441471491,5.96727063,167.59,167.51,18.64964886]
[1747441471664,18.80931896,167.59,167.51,18.64964886]
[1747441471863,5.96727063,167.59,167.51,18.64964886]
[1747441472067,12.84204833,167.58,167.51,18.64964886]
[1747441472702,12.84204833,167.58,167.51,24.61920492]
[1747441473672,5.9676553,167.57,167.51,24.61920492]
[1747441475080,14.91646778,167.6,167.51,24.61920492]
[1747441475302,5.96623113,167.61,167.51,24.61920492]
[1747441475482,12.84204833,167.59,167.51,24.61920492]
[1747441475891,5.96623113,167.61,167.51,24.61920492]
[1747441476091,12.84204833,167.59,167.51,24.61920492]
[1747441476489,12.84204833,167.58,167.51,24.61920492]
[1747441477206,18.80970037,167.58,167.51,24.61920492]
[1747441477407,5.96765204,167.58,167.5,31.97008697]
[1747441477588,12.84204833,167.57,167.5,31.97008697]
[1747441478590,5.96801145,167.56,167.5,31.97008697]
[1747441479302,5.96801145,167.56,167.5,26.0]
[1747441479501,18.81005978,167.56,167.5,26.0]
[1747441479875,18.81005978,167.56,167.49,1.5178]
[1747441480076,18.81005978,167.56,167.49,7.4882349]
[1747441480380,18.81005978,167.56,167.49,1.5178]
[1747441480577,12.84204833,167.56,167.49,7.48826079]
[1747441481480,20.88430096,167.59,167.5,18.64964886]
[1747441481671,12.84204833,167.57,167.5,18.64964886]
[1747441482698,5.96801145,167.56,167.5,24.61964182]
[1747441486816,20.88430096,167.59,167.5,24.61964182]
[1747441486995,12.84204833,167.57,167.5,24.61964182]
[1747441487979,26.0,167.6,167.5,24.61964182]
[1747441488198,25.3,167.64,167.5,24.61964182]
[1747441488199,5.96551929,167.63,167.53,26.0]
[1747441488404,12.84204833,167.62,167.54,18.64964886]
[1747441489111,12.84204833,167.61,167.54,18.64964886]
[1747441489982,5.96658711,167.6,167.55,5.96836765]
[1747441490683,5.96658711,167.6,167.54,24.61826297]
[1747441493223,20.87931753,167.63,167.54,24.61826297]
[1747441493394,12.84204833,167.62,167.55,6.5046]
[1747441493893,12.84204833,167.61,167.55,6.5046]
[1747441495826,12.84204833,167.58,167.53,134.7]
[1747441496006,12.84204833,167.55,167.5,159.85424886]
[1747441496209,12.84204833,167.55,167.5,141.2046]
[1747441496813,12.84204833,167.57,167.5,147.1747255]
[1747441497805,18.81004821,167.57,167.5,147.1747255]
[1747441498154,5.96799988,167.57,167.5,147.1747255]
[1747441498325,18.80944383,167.58,167.5,147.1747255]
[1747441498830,18.80909698,167.59,167.51,44.64964886]
[1747441499006,5.96704865,167.59,167.51,179.34964886]
[1747441499218,12.84204833,167.61,167.51,179.34964886]
[1747441500215,12.84204833,167.62,167.55,18.64964886]
[1747441500428,51.3,167.64,167.55,18.64964886]
[1747441500611,12.84204833,167.63,167.55,18.64964886]
[1747441501731,12.84204833,167.62,167.55,24.617715]
[1747441502094,16.52560014,167.65,167.57,24.82404886]
[1747441502095,12.84204833,167.65,167.57,24.82404886]
[1747441502422,12.44204833,167.65,167.57,24.82404886]
[1747441502609,18.80734409,167.64,167.57,24.82404886]
[1747441502918,12.84204833,167.62,167.56,1.529]
[1747441503296,12.84204833,167.61,167.56,1.529]
[1747441503496,12.84204833,167.59,167.55,134.7]
[1747441503723,5.9672992,167.58,167.55,134.7]
[1747441503936,18.80934753,167.58,167.53,25.16]
[1747441504105,18.80934753,167.58,167.52,27.518]
[1747441504307,5.9672992,167.58,167.52,27.518]
[1747441504724,5.9672992,167.58,167.52,33.48724691]
[1747441505646,12.84204833,167.59,167.52,33.48724691]
[1747441505829,12.84204833,167.59,167.52,27.518]
[1747441505999,14.91622058,167.61,167.52,27.518]
[1747441506000,12.84204833,167.58,167.52,27.518]
[1747441506438,12.84204833,167.53,167.48,1.5222]
[1747441506636,26.0,167.56,167.45,6.62]
[1747441506938,12.84204833,167.5,167.45,6.62]
[1747441507134,12.84204833,167.49,167.45,6.62]
[1747441507303,12.84204833,167.49,167.44,1.5222]
[1747441507614,18.8128462,167.49,167.42,5.97293157]
[1747441507798,14.92315051,167.53,167.42,18.64964886]
[1747441507999,12.84204833,167.51,167.42,18.64964886]
[1747441508201,12.84204833,167.49,167.41,12.59329163]
[1747441508406,12.84204833,167.49,167.42,18.64964886]
[1747441508941,26.0,167.51,167.41,6.62]
[1747441509294,12.84204833,167.48,167.41,6.62]
[1747441509717,26.0,167.51,167.41,6.62]
[1747441509718,5.9715753,167.46,167.41,6.62]
[1747441510732,12.84204833,167.45,167.4,1.5222]
[1747441511815,18.81407054,167.45,167.4,1.5222]
[1747441512011,5.97202221,167.45,167.38,26.0]
[1747441512229,12.84204833,167.44,167.38,18.64964886]
[1747441512411,12.84204833,167.44,167.37,12.58420495]
[1747441512835,12.84204833,167.44,167.37,31.23385381]
[1747441513041,12.84204833,167.43,167.37,6.6095]
[1747441513218,20.54437908,167.43,167.37,6.6095]
[1747441513829,5.97335881,167.41,167.36,1.6436]
[1747441514121,5.97335881,167.41,167.34,51.12]
[1747441514122,26.51773789,167.41,167.34,51.12]
[1747441514321,20.54437908,167.39,167.33,25.25914886]
[1747441514620,20.54437908,167.39,167.33,31.23535219]
[1747441515245,20.54437908,167.39,167.33,25.25914886]
[1747441515636,20.54437908,167.39,167.33,31.23529111]
[1747441515933,14.9320493,167.43,167.33,31.23529111]
[1747441516232,20.54437908,167.41,167.34,18.64964886]
[1747441517333,5.97399847,167.4,167.34,24.62541086]
[1747441517749,26.51777179,167.41,167.34,24.62541086]
[1747441518837,20.54437908,167.41,167.34,24.62541086]
[1747441519135,20.90301003,167.44,167.34,24.62541086]
[1747441519523,20.54437908,167.4,167.33,12.58562883]
[1747441519739,20.54437908,167.38,167.33,6.6095]
[1747441520055,20.54437908,167.38,167.32,27.6436]
[1747441520346,20.54437908,167.38,167.32,33.62015645]
[1747441520727,20.54437908,167.39,167.32,33.62015645]
[1747441520927,5.97442944,167.38,167.32,33.62015645]
[1747441521657,5.97442944,167.38,167.29,140.7975]
[1747441521658,20.54437908,167.36,167.29,140.7975]
[1747441521872,5.97442944,167.38,167.28,1.6058]
[1747441521873,20.91050304,167.38,167.28,1.6058]
[1747441522153,20.54437908,167.32,167.26,24.62828604]
[1747441522329,20.91050304,167.38,167.25,12.07648018]
[1747441522330,30.11050304,167.38,167.25,12.07648018]
[1747441522529,20.54437908,167.32,167.25,38.07648018]
[1747441522943,26.52116197,167.32,167.25,38.07648018]
[1747441523145,26.52116197,167.32,167.25,12.07648018]
[1747441523527,5.97678289,167.32,167.25,12.07648018]
[1747441523938,26.52116197,167.32,167.25,12.07648018]
[1747441524151,20.54437908,167.32,167.25,12.07648018]
[1747441525231,26.5212535,167.32,167.25,6.0975]
[1747441525446,20.54437908,167.31,167.25,6.0975]
[1747441526972,5.97550044,167.35,167.27,26.0]
[1747441527251,20.54437908,167.34,167.28,5.97800095]
[1747441527653,20.54437908,167.34,167.27,31.97828423]
[1747441528250,20.54437908,167.34,167.27,5.97828423]
[1747441528458,45.84,167.24,166.98,35.93244699]
[1747441528659,20.54437908,167.14,166.98,35.93244699]
[1747441528959,26.0,167.19,166.98,20.96059407]
[1747441528960,20.54437908,167.09,166.98,20.96059407]
[1747441529257,20.54437908,167.09,166.98,14.97185291]
[1747441529447,5.48488133,167.09,167.01,26.0]
[1747441529649,26.02926041,167.09,166.97,5.98909983]
[1747441529845,20.54437908,167.08,166.97,5.98909983]
[1747441530257,20.54437908,167.08,167.0,26.0]
[1747441530628,5.48488133,167.09,166.97,20.96184942]
[1747441530961,26.02926041,167.09,167.02,18.64964886]
[1747441531275,20.94303493,167.12,167.0,26.0]
[1747441531428,20.54437908,167.09,167.01,18.64964886]
[1747441531633,20.54437908,167.09,166.98,18.64964886]
[1747441531852,5.98372426,167.12,166.98,39.61024293]
[1747441532056,5.98372426,167.12,167.05,26.0]
[1747441532372,5.98193455,167.17,167.06,18.64964886]
[1747441533046,20.54437908,167.15,167.06,18.64964886]
[1747441533240,20.54437908,167.15,167.08,18.64964886]
[1747441533761,20.54437908,167.13,167.06,24.63548827]
[1747441534054,5.98244329,167.16,167.08,26.0]
[1747441534251,20.54437908,167.15,167.09,18.64964886]
[1747441534453,20.54437908,167.14,167.09,26.0]
[1747441534749,5.98157674,167.18,167.09,26.0]
[1747441534956,20.54437908,167.15,167.09,26.0]
[1747441535462,20.54437908,167.15,167.09,31.98459545]
[1747441535643,20.54437908,167.13,167.07,166.6852237]
[1747441535835,5.98277877,167.15,167.07,31.9852237]
[1747441536047,20.54437908,167.13,167.07,31.9852237]
[1747441536243,5.98277877,167.15,167.07,31.9852237]
[1747441536443,20.54437908,167.14,167.07,31.9852237]
[1747441536956,20.54437908,167.13,167.07,31.9852237]
[1747441537467,20.54437908,167.12,167.06,5.98584996]
[1747441537645,20.54437908,167.08,167.01,18.64964886]
[1747441537842,20.54437908,167.06,167.01,18.64964886]
[1747441538245,20.54437908,167.06,167.01,44.64964886]
[1747441538567,20.54437908,167.02,166.96,6.1301]
[1747441538863,20.54437908,167.02,166.96,12.11944477]
[1747441539037,16.21404356,167.06,166.97,18.64964886]
[1747441539239,20.54437908,167.04,166.97,44.64964886]
[1747441540146,20.54437908,167.03,166.97,44.64964886]
[1747441540464,20.54437908,167.04,166.97,44.64964886]
[1747441540853,20.54437908,167.04,166.98,5.98874116]
[1747441541366,20.54437908,167.0,166.96,5.98945855]
[1747441541665,20.54437908,167.02,166.96,20.96310493]
[1747441542040,20.54437908,167.01,166.96,20.96310493]
[1747441542869,20.54437908,167.01,166.96,5.98945855]
[1747441543263,20.54437908,167.0,166.96,5.98945855]
[1747441543555,20.54437908,167.01,166.96,5.98945855]
[1747441544267,20.54437908,166.99,166.96,5.98945855]
[1747441544468,20.54437908,166.99,166.95,31.98972085]
[1747441544854,5.98699913,167.03,166.95,31.98972085]
[1747441545065,20.54437908,167.0,166.95,31.98972085]
[1747441545469,20.54437908,166.99,166.95,31.98972085]
[1747441545766,5.98772107,167.01,166.94,5.9900751]
[1747441546186,40.96513637,167.06,166.94,5.9900751]
[1747441546350,50.38,167.05,166.94,5.9900751]
[1747441546867,5.98623166,167.05,166.95,18.64964886]
[1747441547083,51.16,167.08,166.98,18.64964886]
[1747441547263,20.54437908,167.05,166.98,18.64964886]
[1747441547469,5.98551505,167.07,166.99,5.98838253]
[1747441547778,20.54437908,167.02,166.98,5.98869913]
[1747441547985,20.54437908,167.01,166.97,26.0]
[1747441548174,20.54437908,167.02,166.97,26.0]
[1747441548368,38.2488482,167.07,166.97,26.0]
[1747441548571,25.16,167.06,166.97,26.0]
[1747441548795,20.54437908,167.03,166.97,26.0]
[1747441548988,23.28506057,167.07,166.94,5.99017611]
[1747441548989,20.54437908,167.0,166.94,5.99017611]
[1747441549366,20.54437908,166.99,166.94,5.99017611]
[1747441549665,20.54437908,166.99,166.93,24.64012129]
[1747441550193,20.54437908,166.97,166.92,6.5005]
[1747441550384,20.54437908,166.96,166.9,7.56474296]
[1747441550565,20.54437908,166.95,166.9,7.56474296]
[1747441550767,20.54437908,166.95,166.91,26.0]
[1747441550963,20.54437908,166.93,166.87,6.4416]
[1747441551166,20.54437908,166.95,166.88,18.64964886]
[1747441551387,26.0,166.98,166.88,18.64964886]
[1747441551572,20.54437908,166.96,166.89,5.99197075]
[1747441551778,20.54437908,166.98,166.91,18.64964886]
[1747441552275,43.29954552,167.02,166.91,18.64964886]
[1747441552476,20.54437908,166.98,166.91,18.64964886]
[1747441552676,43.29954552,167.02,166.91,18.64964886]
[1747441552873,49.28693069,167.02,166.93,18.64964886]
[1747441553085,20.54437908,167.0,166.93,18.64964886]
[1747441553372,20.54437908,167.01,166.93,18.64964886]
[1747441553677,20.54437908,167.01,166.94,5.99017611]
[1747441553870,5.98704293,167.03,166.94,5.99017611]
[1747441554071,20.54437908,167.01,166.94,5.99017611]
[1747441554270,20.54437908,166.99,166.94,5.99017611]
[1747441554486,20.95441406,167.03,166.92,5.99085978]
[1747441554680,38.0228686,167.03,166.92,5.99085978]
[1747441554878,5.98704293,167.03,166.93,44.64964886]
[1747441555101,20.54437908,167.0,166.93,44.64964886]
[1747441555470,20.95441406,167.03,166.92,5.99085978]
[1747441555710,20.54437908,166.97,166.92,5.99085978]
[1747441557172,20.54437908,166.96,166.9,31.99125399]
[1747441557372,5.98911645,166.97,166.9,31.99125399]
[1747441557569,20.54437908,166.92,166.87,6.4416]
[1747441557802,26.0,166.97,166.87,6.4416]
[1747441557997,20.54437908,166.92,166.87,6.4416]
[1747441558297,20.54437908,166.93,166.87,12.4341248]
[1747441559893,5.98945855,166.96,166.88,18.64964886]
[1747441560200,20.54437908,166.92,166.87,6.4416]
[1747441560395,5.98945855,166.96,166.87,6.4416]
[1747441560396,5.98945855,166.96,166.87,12.4342655]
[1747441560895,20.54437908,166.92,166.87,12.4342655]
[1747441561079,5.98945855,166.96,166.87,5.9926655]
[1747441561280,20.54437908,166.93,166.87,5.9926655]
[1747441562400,5.99003547,166.95,166.87,5.9926655]
[1747441562607,20.54437908,166.92,166.87,5.9926655]
[1747441563303,5.98952115,166.96,166.87,5.9926655]
[1747441563508,54.02,166.98,166.87,5.9926655]
[1747441563509,20.54437908,166.94,166.88,18.64964886]
[1747441563682,26.0,166.99,166.88,18.64964886]
[1747441564008,20.54437908,166.98,166.92,18.64964886]
[1747441564195,26.84,167.01,166.92,18.64964886]
[1747441564388,20.54437908,166.99,166.93,5.99053495]
[1747441565207,31.9873069,167.02,166.9,26.0]
[1747441565503,20.54437908,166.95,166.9,26.0]
[1747441565745,20.54437908,166.94,166.89,18.64964886]
[1747441566009,20.54437908,166.95,166.89,18.64964886]
[1747441566491,26.0,166.94,166.84,7.8437]
[1747441566680,20.54437908,166.95,166.84,13.83740402]
[1747441566999,26.0,166.96,166.85,18.64964886]
[1747441567199,20.54437908,166.9,166.85,18.64964886]
[1747441567403,20.54437908,166.95,166.84,13.83740402]
[1747441567612,5.99076364,166.93,166.85,50.64278871]
[1747441567782,20.54437908,166.91,166.85,50.64278871]
[1747441567981,9.1860659,166.97,166.85,65.62630684]
[1747441568287,20.54437908,166.94,166.85,65.62630684]
[1747441568590,5.98909983,166.97,166.89,18.64964886]
[1747441568789,20.54437908,166.94,166.89,18.64964886]
[1747441569003,2.43660176,167.0,166.93,7.7275]
[1747441569209,5.7759,167.14,166.97,44.64964886]
[1747441569377,54.5,167.18,167.01,26.0]
[1747441569378,20.54437908,167.11,167.01,26.0]
[1747441569585,31.98265031,167.15,167.01,24.63700173]
[1747441569801,20.54437908,167.1,167.01,24.63700173]
[1747441569994,20.54437908,167.09,167.01,24.63700173]
[1747441570192,20.54437908,167.08,167.01,24.63700173]
[1747441570399,20.54437908,167.07,167.01,24.63700173]
[1747441570923,20.54437908,167.07,167.04,26.0]
[1747441571095,5.98518534,167.08,167.04,26.0]
[1747441571290,5.98372426,167.12,167.04,26.0]
[1747441571497,5.98372426,167.12,167.04,32.1966]
[1747441571823,26.52810334,167.12,167.04,32.1966]
[1747441572505,20.54437908,167.11,167.04,32.1966]
[1747441572913,5.98510006,167.09,167.04,32.1966]
[1747441573102,26.52947914,167.09,167.04,32.1966]
[1747441574191,20.54437908,167.09,167.04,32.1966]
[1747441575607,5.98515681,167.08,167.04,32.1966]
[1747441575810,26.52921161,167.09,167.04,32.1966]
[1747441576009,5.98483253,167.09,167.04,32.1966]
[1747441576216,20.54437908,167.06,167.02,26.0]
[1747441576514,5.98483253,167.09,167.02,26.0]
[1747441576719,20.54437908,167.08,167.02,26.0]
[1747441577721,26.53014414,167.07,167.02,26.0]
[1747441577891,20.54437908,167.08,167.02,26.0]
[1747441578512,5.98408234,167.11,167.04,26.0]
[1747441578698,5.98193455,167.17,167.05,18.64964886]
[1747441578908,20.54437908,167.14,167.05,18.64964886]
[1747441579118,5.98193455,167.17,167.09,18.64964886]
[1747441579526,59.7654,167.23,167.13,5.98336624]
[1747441579703,20.54437908,167.21,167.13,5.98336624]
[1747441580016,20.54437908,167.17,167.13,26.0]
[1747441580220,20.93051069,167.22,167.13,26.0]
[1747441580426,20.54437908,167.18,167.13,26.0]
[1747441580597,20.93051069,167.22,167.13,26.0]
[1747441580798,20.54437908,167.18,167.13,26.0]
[1747441581096,20.54437908,167.14,167.09,18.64964886]
[1747441581319,20.54437908,167.14,167.08,26.0]
[1747441581519,5.98515681,167.08,167.03,1.6167]